fUSD/lending_fUSD_20240728
["ID","MTS","AMOUNT","RATE_DAILY","PERIOD"]
[333442444,1722127861363,-344.64,0.00010958,2]
[333442445,1722127861373,-500.0,0.00010958,2]
[333442446,1722127861382,-500.0,0.00010958,2]
[333442447,1722127861391,-500.0,0.00010958,2]
[333442448,1722127861400,-1056.47,0.00010958,2]
[333442449,1722127861409,-250.0,0.00010959,2]
[333442450,1722127861419,-150.0,0.00010959,2]
[333442451,1722127861429,-150.0,0.0001096,2]
[333442452,1722127861440,-150.0,0.00010963,2]
[333442453,1722127861450,-5800.0,0.00010965,2]
[333442454,1722127861459,-150.0,0.00010969,2]
[333442455,1722127861469,-5800.0,0.00010973,2]
[333442456,1722127861478,-150.0,0.00010977,2]
[333442457,1722127861487,-150.0,0.00010977,2]
[333442458,1722127861497,-150.0,0.00010979,2]
[333442459,1722127861506,-5800.0,0.00010982,2]
[333442460,1722127861515,-500.0,0.00010984,2]
[333442461,1722127861525,-500.0,0.00010984,2]
[333442462,1722127861535,-247.22166364,0.00010984,2]
[333442463,1722127861551,-500.0,0.00010984,2]
[333442464,1722127861560,-500.0,0.00010984,2]
[333442465,1722127861572,-500.0,0.00010985,2]
[333442466,1722127861582,-500.0,0.00010985,2]
[333442467,1722127861591,-500.0,0.00010985,2]
[333442468,1722127861601,-500.0,0.00010985,2]
[333442469,1722127861610,-500.0,0.00010985,2]
[333442470,1722127861620,-634.84,0.00010985,2]
[333442471,1722127861629,-500.0,0.00010985,2]
[333442472,1722127861638,-500.0,0.00010985,2]
[333442473,1722127861647,-500.0,0.00010985,2]
[333442474,1722127861656,-500.0,0.00010985,2]
[333442475,1722127861665,-500.0,0.00010985,2]
[333442476,1722127861675,-500.0,0.00010985,2]
[333442477,1722127861684,-500.0,0.00010985,2]
[333442478,1722127861693,-500.0,0.00010985,2]
[333442479,1722127861702,-500.0,0.00010985,2]
[333442480,1722127861711,-500.0,0.00010985,2]
[333442481,1722127861720,-285.72,0.00010985,2]
[333442482,1722127861729,-371.30943953,0.00010985,2]
[333442483,1722127861738,-500.0,0.00010985,2]
[333442484,1722127861747,-500.0,0.00010985,2]
[333442485,1722127861756,-500.0,0.00010985,2]
[333442486,1722127861766,-500.0,0.00010985,2]
[333442487,1722127861775,-500.0,0.00010985,2]
[333442488,1722127861784,-500.0,0.00010985,2]
[333442489,1722127861795,-500.0,0.00010985,2]
[333442490,1722127861805,-1666.12,0.00010985,2]
[333442491,1722127861814,-500.0,0.00010985,2]
[333442492,1722127861823,-621.95,0.00010985,2]
[333442493,1722127861833,-500.0,0.00010985,2]
[333442494,1722127861842,-500.0,0.00010985,2]
[333442495,1722127861851,-500.0,0.00010985,2]
[333442496,1722127861862,-500.0,0.00010985,2]
[333442497,1722127861872,-500.0,0.00010985,2]
[333442498,1722127861881,-500.0,0.00010985,2]
[333442499,1722127861891,-500.0,0.00010985,2]
[333442500,1722127861902,-500.0,0.00010985,2]
[333442501,1722127861911,-542.11,0.00010985,2]
[333442502,1722127861921,-1836.19,0.00010985,2]
[333442503,1722127861930,-500.0,0.00010985,2]
[333442504,1722127861940,-500.0,0.00010985,2]
[333442505,1722127861951,-500.0,0.00010985,2]
[333442506,1722127861961,-500.0,0.00010985,2]
[333442507,1722127861973,-1094.27,0.00010985,2]
[333442508,1722127861982,-1158.98,0.00010985,2]
[333442509,1722127861991,-1740.12,0.00010985,2]
[333442510,1722127862002,-660.56,0.00010986,2]
[333442511,1722127862012,-500.0,0.00010986,2]
[333442512,1722127862021,-500.0,0.00010986,2]
[333442513,1722127862031,-627.41,0.00010986,2]
[333442514,1722127862042,-500.0,0.00010986,2]
[333442515,1722127862051,-500.0,0.00010986,2]
[333442516,1722127862061,-500.0,0.00010986,2]
[333442517,1722127862074,-500.0,0.00010986,2]
[333442518,1722127862084,-500.0,0.00010986,2]
[333442519,1722127862093,-500.0,0.00010986,2]
[333442520,1722127862102,-500.0,0.00010986,2]
[333442521,1722127862113,-500.0,0.00010986,2]
[333442522,1722127862123,-500.0,0.00010986,2]
[333442523,1722127862133,-1133.51,0.00010986,2]
[333442524,1722127862143,-500.0,0.00010986,2]
[333442525,1722127862153,-500.0,0.00010986,2]
[333442526,1722127862163,-500.0,0.00010986,2]
[333442527,1722127862172,-500.0,0.00010986,2]
[333442528,1722127862182,-500.0,0.00010986,2]
[333442529,1722127862191,-500.0,0.00010986,2]
[333442530,1722127862202,-500.0,0.00010986,2]
[333442531,1722127862211,-500.0,0.00010986,2]
[333442532,1722127862221,-500.0,0.00010986,2]
[333442533,1722127862231,-500.0,0.00010986,2]
[333442534,1722127862241,-500.0,0.00010986,2]
[333442535,1722127862250,-500.0,0.00010986,2]
[333442536,1722127862260,-500.0,0.00010986,2]
[333442537,1722127862269,-500.0,0.00010986,2]
[333442538,1722127862279,-500.0,0.00010986,2]
[333442539,1722127862289,-164.92,0.00010986,2]
[333442540,1722127862299,-500.0,0.00010986,2]
[333442541,1722127862308,-500.0,0.00010986,2]
[333442542,1722127862317,-500.0,0.00010986,2]
[333442543,1722127862327,-594.88,0.00010986,2]
[333442544,1722127862336,-579.49,0.00010986,2]
[333442545,1722127862345,-500.0,0.00010986,2]
[333442546,1722127862355,-918.09,0.00010986,2]
[333442547,1722127862364,-622.07,0.00010986,2]
[333442548,1722127862373,-870.05,0.00010986,2]
[333442549,1722127862383,-546.64,0.00010986,2]
[333442550,1722127862393,-2258.46,0.00010986,2]
[333442551,1722127862402,-837.74,0.00010986,2]
[333442552,1722127862412,-500.0,0.00010986,2]
[333442553,1722127862421,-500.0,0.00010986,2]
[333442554,1722127862432,-500.0,0.00010986,2]
[333442555,1722127862441,-500.0,0.00010986,2]
[333442556,1722127862451,-503.12,0.00010986,2]
[333442557,1722127862460,-727.52,0.00010986,2]
[333442558,1722127862469,-500.0,0.00010986,2]
[333442559,1722127862478,-500.0,0.00010986,2]
[333442561,1722127862487,-500.0,0.00010986,2]
[333442562,1722127862497,-957.96,0.00010986,2]
[333442563,1722127862506,-500.0,0.00010986,2]
[333442564,1722127862515,-500.0,0.00010986,2]
[333442565,1722127862524,-500.0,0.00010986,2]
[333442566,1722127862533,-249.48,0.00010986,2]
[333442567,1722127862546,-500.0,0.00010986,2]
[333442568,1722127862556,-500.0,0.00010986,2]
[333442569,1722127862565,-500.0,0.00010986,2]
[333442570,1722127862575,-532.87,0.00010986,2]
[333442571,1722127862584,-659.8,0.00010986,2]
[333442572,1722127862593,-500.0,0.00010986,2]
[333442573,1722127862603,-500.0,0.00010986,2]
[333442574,1722127862612,-500.0,0.00010986,2]
[333442575,1722127862622,-150.0,0.00010986,2]
[333442576,1722127862631,-500.0,0.00010986,2]
[333442577,1722127862641,-310.88,0.00010986,2]
[333442578,1722127862650,-667.48,0.00010986,2]
[333442579,1722127862659,-500.0,0.00010986,2]
[333442580,1722127862668,-676.78,0.00010986,2]
[333442581,1722127862677,-500.0,0.00010986,2]
[333442582,1722127862687,-623.76,0.00010986,2]
[333442583,1722127862696,-500.0,0.00010986,2]
[333442584,1722127862705,-500.0,0.00010986,2]
[333442585,1722127862715,-547.44,0.00010986,2]
[333442586,1722127862724,-500.0,0.00010986,2]
[333442587,1722127862734,-150.0,0.00010989,2]
[333442588,1722127862744,-5800.0,0.00010991,2]
[333442589,1722127862754,-1254.0,0.00010996,2]
[333442590,1722127862763,-1829.0,0.00010996,2]
[333442591,1722127862772,-362.0,0.00010996,2]
[333442592,1722127862783,-1580.0,0.00010996,2]
[333442593,1722127862799,-621.0,0.00010996,2]
[333442594,1722127862808,-852.677,0.00010996,2]
[333442595,1722127862818,-450.0,0.00010996,2]
[333442596,1722127862827,-550.0,0.00010996,2]
[333442597,1722127862837,-2383.0,0.00010996,2]
[333442598,1722127862846,-1994.0,0.00010996,2]
[333442599,1722127862856,-3283.0,0.00010996,2]
[333442600,1722127862865,-150.0,0.00010996,2]
[333442601,1722127862875,-960.549,0.00010996,2]
[333442602,1722127862885,-1202.0,0.00010996,2]
[333442603,1722127862894,-500.0,0.00010997,2]
[333442604,1722127862904,-500.0,0.00010997,2]
[333442605,1722127862914,-518.14,0.00010997,2]
[333442606,1722127862923,-500.0,0.00010997,2]
[333442607,1722127862932,-564.35,0.00010997,2]
[333442608,1722127863046,-500.0,0.00010997,2]
[333442609,1722127863056,-500.0,0.00010997,2]
[333442610,1722127863066,-216.41,0.00010997,2]
[333442611,1722127863077,-500.0,0.00010997,2]
[333442612,1722127863087,-482.95,0.00010997,2]
[333442613,1722127863096,-500.0,0.00010997,2]
[333442614,1722127863105,-439.72,0.00010997,2]
[333442615,1722127863115,-500.0,0.00010997,2]
[333442616,1722127863124,-500.0,0.00010997,2]
[333442617,1722127863133,-500.0,0.00010997,2]
[333442618,1722127863142,-500.0,0.00010997,2]
[333442619,1722127863152,-1184.57,0.00010997,2]
[333442620,1722127863161,-500.0,0.00010997,2]
[333442621,1722127863171,-500.0,0.00010997,2]
[333442622,1722127863181,-500.0,0.00010997,2]
[333442623,1722127863191,-500.0,0.00010997,2]
[333442624,1722127863201,-787.45,0.00010997,2]
[333442625,1722127863211,-787.45,0.00010997,2]
[333442626,1722127863220,-784.64,0.00010997,2]
[333442627,1722127863230,-784.64,0.00010997,2]
[333442628,1722127863239,-500.0,0.00010997,2]
[333442629,1722127863248,-500.0,0.00010997,2]
[333442630,1722127863258,-500.0,0.00010997,2]
[333442631,1722127863267,-1070.98,0.00010997,2]
[333442632,1722127863276,-1070.98,0.00010997,2]
[333442633,1722127863285,-660.56,0.00010997,2]
[333442634,1722127863296,-500.0,0.00010997,2]
[333442635,1722127863306,-425.54,0.00010997,2]
[333442636,1722127863315,-183.62,0.00010997,2]
[333442637,1722127863325,-500.0,0.00010997,2]
[333442638,1722127863335,-500.0,0.00010997,2]
[333442639,1722127863344,-500.0,0.00010997,2]
[333442640,1722127863354,-500.0,0.00010997,2]
[333442641,1722127863364,-559.76,0.00010997,2]
[333442642,1722127863374,-500.0,0.00010997,2]
[333442643,1722127863383,-500.0,0.00010997,2]
[333442644,1722127863393,-500.0,0.00010997,2]
[333442645,1722127863402,-500.0,0.00010997,2]
[333442646,1722127863412,-500.0,0.00010997,2]
[333442647,1722127863422,-323.28,0.00010997,2]
[333442648,1722127863433,-274.79,0.00010997,2]
[333442649,1722127863443,-500.0,0.00010997,2]
[333442650,1722127863453,-1133.51,0.00010997,2]
[333442651,1722127863463,-454.43,0.00010997,2]
[333442652,1722127863473,-500.0,0.00010997,2]
[333442653,1722127863483,-500.0,0.00010997,2]
[333442654,1722127863493,-613.71,0.00010997,2]
[333442655,1722127863502,-613.71,0.00010997,2]
[333442656,1722127863512,-500.0,0.00010997,2]
[333442657,1722127863522,-500.0,0.00010997,2]
[333442658,1722127863532,-500.0,0.00010997,2]
[333442659,1722127863544,-167.15,0.00010997,2]
[333442660,1722127863555,-500.0,0.00010997,2]
[333442661,1722127863564,-500.0,0.00010997,2]
[333442662,1722127863574,-500.0,0.00010997,2]
[333442663,1722127863583,-270.25,0.00010997,2]
[333442664,1722127863593,-500.0,0.00010997,2]
[333442665,1722127863603,-579.49,0.00010997,2]
[333442666,1722127863613,-500.0,0.00010997,2]
[333442667,1722127863622,-918.09,0.00010997,2]
[333442668,1722127863632,-500.0,0.00010997,2]
[333442669,1722127863641,-870.05,0.00010997,2]
[333442670,1722127863651,-215.7,0.00010997,2]
[333442671,1722127863661,-500.0,0.00010997,2]
[333442672,1722127863670,-274.35,0.00010997,2]
[333442673,1722127863679,-555.33,0.00010997,2]
[333442674,1722127863690,-224.24,0.00010997,2]
[333442675,1722127863699,-2258.46,0.00010997,2]
[333442676,1722127863709,-500.0,0.00010997,2]
[333442677,1722127863718,-500.0,0.00010997,2]
[333442678,1722127863727,-500.0,0.00010997,2]
[333442679,1722127863737,-500.0,0.00010997,2]
[333442680,1722127863746,-439.55,0.00010997,2]
[333442681,1722127863756,-500.0,0.00010997,2]
[333442682,1722127863765,-500.0,0.00010997,2]
[333442683,1722127863775,-837.74,0.00010997,2]
[333442684,1722127863784,-782.73,0.00010997,2]
[333442685,1722127863804,-782.73,0.00010997,2]
[333442686,1722127863822,-500.0,0.00010997,2]
[333442687,1722127863840,-501.24,0.00010997,2]
[333442688,1722127863858,-500.0,0.00010997,2]
[333442689,1722127863877,-500.0,0.00010997,2]
[333442690,1722127863894,-503.12,0.00010997,2]
[333442691,1722127863913,-727.52,0.00010997,2]
[333442692,1722127863928,-358.04,0.00010997,2]
[333442693,1722127863945,-500.0,0.00010997,2]
[333442694,1722127863962,-500.0,0.00010997,2]
[333442695,1722127863982,-500.0,0.00010997,2]
[333442696,1722127863996,-500.0,0.00010997,2]
[333442697,1722127864012,-500.0,0.00010997,2]
[333442698,1722127864028,-957.96,0.00010997,2]
[333442699,1722127864047,-500.0,0.00010997,2]
[333442700,1722127864062,-500.0,0.00010997,2]
[333442701,1722127864079,-256.92,0.00010997,2]
[333442702,1722127864095,-500.0,0.00010997,2]
[333442703,1722127864111,-500.0,0.00010997,2]
[333442704,1722127864126,-500.0,0.00010997,2]
[333442705,1722127864142,-500.0,0.00010997,2]
[333442706,1722127864157,-500.0,0.00010997,2]
[333442707,1722127864172,-304.67,0.00010997,2]
[333442708,1722127864187,-500.0,0.00010997,2]
[333442709,1722127864203,-500.0,0.00010997,2]
[333442710,1722127864218,-500.0,0.00010997,2]
[333442711,1722127864233,-500.0,0.00010997,2]
[333442712,1722127864247,-532.87,0.00010997,2]
[333442713,1722127864262,-500.0,0.00010997,2]
[333442714,1722127864277,-659.8,0.00010997,2]
[333442715,1722127864292,-500.0,0.00010997,2]
[333442716,1722127864309,-500.0,0.00010997,2]
[333442717,1722127864329,-500.0,0.00010997,2]
[333442718,1722127864344,-500.0,0.00010997,2]
[333442719,1722127864359,-500.0,0.00010997,2]
[333442720,1722127864374,-3756.69,0.00010997,2]
[333442721,1722127864389,-1132.09,0.00010997,2]
[333442722,1722127864404,-500.0,0.00010997,2]
[333442723,1722127864419,-500.0,0.00010997,2]
[333442724,1722127864435,-500.0,0.00010997,2]
[333442725,1722127864451,-252.23,0.00010997,2]
[333442726,1722127864466,-495.92,0.00010997,2]
[333442727,1722127864482,-150.0,0.00010997,2]
[333442728,1722127864497,-667.48,0.00010997,2]
[333442729,1722127864512,-500.0,0.00010997,2]
[333442730,1722127864526,-500.0,0.00010997,2]
[333442731,1722127864542,-676.78,0.00010997,2]
[333442732,1722127864556,-500.0,0.00010997,2]
[333442733,1722127864571,-623.76,0.00010997,2]
[333442734,1722127864585,-500.0,0.00010997,2]
[333442735,1722127864600,-500.0,0.00010997,2]
[333442736,1722127864615,-500.0,0.00010997,2]
[333442737,1722127864630,-500.0,0.00010997,2]
[333442738,1722127864643,-1490.45,0.00010997,2]
[333442739,1722127864658,-500.0,0.00010997,2]
[333442740,1722127864674,-500.0,0.00010998,2]
[333442741,1722127864690,-500.0,0.00010998,2]
[333442742,1722127864706,-500.0,0.00010998,2]
[333442743,1722127864718,-500.0,0.00010998,2]
[333442744,1722127864727,-500.0,0.00010998,2]
[333442745,1722127864736,-500.0,0.00010998,2]
[333442746,1722127864746,-414.51,0.00010998,2]
[333442747,1722127864756,-500.0,0.00010998,2]
[333442748,1722127864765,-152.44,0.00010998,2]
[333442749,1722127864775,-191.57,0.00010998,2]
[333442750,1722127864784,-500.0,0.00010998,2]
[333442751,1722127864794,-500.0,0.00010998,2]
[333442752,1722127864803,-500.0,0.00010998,2]
[333442753,1722127864813,-500.0,0.00010998,2]
[333442754,1722127864822,-500.0,0.00010998,2]
[333442755,1722127864832,-547.65,0.00010998,2]
[333442756,1722127864841,-500.0,0.00010998,2]
[333442757,1722127864851,-500.0,0.00010998,2]
[333442758,1722127864860,-500.0,0.00010998,2]
[333442759,1722127864870,-500.0,0.00010998,2]
[333442760,1722127864879,-500.0,0.00010998,2]
[333442761,1722127864889,-500.0,0.00010998,2]
[333442762,1722127864898,-500.0,0.00010998,2]
[333442763,1722127864908,-500.0,0.00010998,2]
[333442764,1722127865175,-1184.57,0.00010998,2]
[333442765,1722127865198,-1184.57,0.00010998,2]
[333442766,1722127865213,-1184.57,0.00010998,2]
[333442767,1722127865223,-1184.57,0.00010998,2]
[333442768,1722127865232,-221.34,0.00010998,2]
[333442769,1722127865242,-500.0,0.00010998,2]
[333442770,1722127865252,-587.58,0.00010998,2]
[333442771,1722127865261,-787.45,0.00010998,2]
[333442772,1722127865271,-787.45,0.00010998,2]
[333442773,1722127865281,-787.45,0.00010998,2]
[333442774,1722127865292,-787.45,0.00010998,2]
[333442775,1722127865302,-784.64,0.00010998,2]
[333442776,1722127865311,-784.64,0.00010998,2]
[333442777,1722127865321,-784.64,0.00010998,2]
[333442778,1722127865330,-784.64,0.00010998,2]
[333442779,1722127865339,-500.0,0.00010998,2]
[333442780,1722127865348,-500.0,0.00010998,2]
[333442781,1722127865357,-500.0,0.00010998,2]
[333442782,1722127865367,-494.26,0.00010998,2]
[333442783,1722127865376,-1070.98,0.00010998,2]
[333442784,1722127865385,-660.56,0.00010998,2]
[333442785,1722127865396,-1070.98,0.00010998,2]
[333442786,1722127865405,-660.56,0.00010998,2]
[333442787,1722127865414,-1070.98,0.00010998,2]
[333442788,1722127865423,-660.56,0.00010998,2]
[333442789,1722127865432,-1070.98,0.00010998,2]
[333442790,1722127865442,-660.56,0.00010998,2]
[333442791,1722127865451,-500.0,0.00010998,2]
[333442792,1722127865460,-660.56,0.00010998,2]
[333442793,1722127865470,-615.55,0.00010998,2]
[333442794,1722127865479,-500.0,0.00010998,2]
[333442795,1722127865488,-500.0,0.00010998,2]
[333442796,1722127865498,-500.0,0.00010998,2]
[333442797,1722127865507,-294.54,0.00010998,2]
[333442798,1722127865516,-500.0,0.00010998,2]
[333442799,1722127865525,-500.0,0.00010998,2]
[333442800,1722127865534,-500.0,0.00010998,2]
[333442801,1722127865544,-500.0,0.00010998,2]
[333442802,1722127865553,-500.0,0.00010998,2]
[333442803,1722127865563,-500.0,0.00010998,2]
[333442804,1722127865573,-490.91,0.00010998,2]
[333442805,1722127865583,-500.0,0.00010998,2]
[333442806,1722127865593,-500.0,0.00010998,2]
[333442807,1722127865603,-500.0,0.00010998,2]
[333442808,1722127865614,-258.56,0.00010998,2]
[333442809,1722127865623,-500.0,0.00010998,2]
[333442810,1722127865634,-215.57,0.00010998,2]
[333442811,1722127865643,-500.0,0.00010998,2]
[333442812,1722127865652,-306.57,0.00010998,2]
[333442813,1722127865663,-500.0,0.00010998,2]
[333442814,1722127865673,-500.0,0.00010998,2]
[333442815,1722127865683,-500.0,0.00010998,2]
[333442816,1722127865694,-500.0,0.00010998,2]
[333442817,1722127865705,-500.0,0.00010998,2]
[333442818,1722127865714,-500.0,0.00010998,2]
[333442819,1722127865724,-500.0,0.00010998,2]
[333442820,1722127865735,-500.0,0.00010998,2]
[333442821,1722127865746,-484.03,0.00010998,2]
[333442822,1722127865756,-1133.51,0.00010998,2]
[333442823,1722127865766,-1133.51,0.00010998,2]
[333442824,1722127865776,-1133.51,0.00010998,2]
[333442825,1722127865785,-1133.51,0.00010998,2]
[333442826,1722127865796,-1133.51,0.00010998,2]
[333442827,1722127865805,-500.0,0.00010998,2]
[333442828,1722127865814,-500.0,0.00010998,2]
[333442829,1722127865824,-500.0,0.00010998,2]
[333442830,1722127865833,-212.39,0.00010998,2]
[333442831,1722127865843,-613.71,0.00010998,2]
[333442832,1722127865853,-613.71,0.00010998,2]
[333442833,1722127865863,-613.71,0.00010998,2]
[333442834,1722127865872,-613.71,0.00010998,2]
[333442835,1722127865881,-500.0,0.00010998,2]
[333442836,1722127865890,-500.0,0.00010998,2]
[333442837,1722127865901,-500.0,0.00010998,2]
[333442838,1722127865910,-500.0,0.00010998,2]
[333442839,1722127865919,-500.0,0.00010998,2]
[333442840,1722127865930,-513.92,0.00010998,2]
[333442841,1722127865939,-500.0,0.00010998,2]
[333442842,1722127865948,-281.99,0.00010998,2]
[333442843,1722127865957,-410.96,0.00010998,2]
[333442844,1722127865966,-579.49,0.00010998,2]
[333442845,1722127865976,-579.49,0.00010998,2]
[333442846,1722127865985,-579.49,0.00010998,2]
[333442847,1722127865994,-579.49,0.00010998,2]
[333442848,1722127866004,-579.49,0.00010998,2]
[333442849,1722127866013,-500.0,0.00010998,2]
[333442850,1722127866023,-500.0,0.00010998,2]
[333442851,1722127866034,-500.0,0.00010998,2]
[333442852,1722127866044,-505.36,0.00010998,2]
[333442853,1722127866053,-918.09,0.00010998,2]
[333442854,1722127866062,-918.09,0.00010998,2]
[333442855,1722127866076,-918.09,0.00010998,2]
[333442856,1722127866085,-918.09,0.00010998,2]
[333442857,1722127866094,-918.09,0.00010998,2]
[333442858,1722127866104,-870.05,0.00010998,2]
[333442859,1722127866114,-870.05,0.00010998,2]
[333442860,1722127866123,-870.05,0.00010998,2]
[333442861,1722127866133,-870.05,0.00010998,2]
[333442862,1722127866145,-870.05,0.00010998,2]
[333442863,1722127866155,-2258.46,0.00010998,2]
[333442864,1722127866165,-2258.46,0.00010998,2]
[333442865,1722127866174,-2258.46,0.00010998,2]
[333442866,1722127866183,-2258.46,0.00010998,2]
[333442867,1722127866193,-2258.46,0.00010998,2]
[333442868,1722127866202,-500.0,0.00010998,2]
[333442869,1722127866212,-500.0,0.00010998,2]
[333442870,1722127866221,-500.0,0.00010998,2]
[333442871,1722127866231,-500.0,0.00010998,2]
[333442872,1722127866240,-500.0,0.00010998,2]
[333442873,1722127866250,-500.0,0.00010998,2]
[333442874,1722127866260,-500.0,0.00010998,2]
[333442875,1722127866271,-500.0,0.00010998,2]
[333442876,1722127866280,-500.0,0.00010998,2]
[333442877,1722127866290,-500.0,0.00010998,2]
[333442878,1722127866299,-500.0,0.00010998,2]
[333442879,1722127866309,-500.0,0.00010998,2]
[333442880,1722127866318,-837.74,0.00010998,2]
[333442881,1722127866327,-837.74,0.00010998,2]
[333442882,1722127866337,-837.74,0.00010998,2]
[333442883,1722127866346,-837.74,0.00010998,2]
[333442884,1722127866355,-837.74,0.00010998,2]
[333442885,1722127866365,-782.73,0.00010998,2]
[333442886,1722127866374,-782.73,0.00010998,2]
[333442887,1722127866384,-782.73,0.00010998,2]
[333442888,1722127866393,-782.73,0.00010998,2]
[333442889,1722127866403,-500.0,0.00010998,2]
[333442890,1722127866412,-500.0,0.00010998,2]
[333442891,1722127866421,-500.0,0.00010998,2]
[333442892,1722127866431,-500.0,0.00010998,2]
[333442893,1722127866440,-500.0,0.00010998,2]
[333442894,1722127866449,-500.0,0.00010998,2]
[333442895,1722127866458,-500.0,0.00010998,2]
[333442896,1722127866468,-500.0,0.00010998,2]
[333442897,1722127866477,-500.0,0.00010998,2]
[333442898,1722127866486,-500.0,0.00010998,2]
[333442899,1722127866495,-500.0,0.00010998,2]
[333442900,1722127866504,-500.0,0.00010998,2]
[333442901,1722127866513,-500.0,0.00010998,2]
[333442902,1722127866522,-500.0,0.00010998,2]
[333442903,1722127866531,-500.0,0.00010998,2]
[333442904,1722127866541,-503.12,0.00010998,2]
[333442905,1722127866550,-503.12,0.00010998,2]
[333442906,1722127866559,-503.12,0.00010998,2]
[333442907,1722127866568,-503.12,0.00010998,2]
[333442908,1722127866577,-503.12,0.00010998,2]
[333442909,1722127866586,-727.52,0.00010998,2]
[333442910,1722127866595,-727.52,0.00010998,2]
[333442911,1722127866604,-727.52,0.00010998,2]
[333442912,1722127866613,-727.52,0.00010998,2]
[333442913,1722127866622,-727.52,0.00010998,2]
[333442914,1722127866631,-500.0,0.00010998,2]
[333442915,1722127866641,-500.0,0.00010998,2]
[333442916,1722127866650,-500.0,0.00010998,2]
[333442917,1722127866659,-500.0,0.00010998,2]
[333442918,1722127866668,-500.0,0.00010998,2]
[333442919,1722127866677,-500.0,0.00010998,2]
[333442920,1722127866687,-377.41,0.00010998,2]
[333442921,1722127866696,-500.0,0.00010998,2]
[333442922,1722127866705,-500.0,0.00010998,2]
[333442923,1722127866715,-500.0,0.00010998,2]
[333442924,1722127866725,-590.17,0.00010998,2]
[333442925,1722127866734,-500.0,0.00010998,2]
[333442926,1722127866743,-957.96,0.00010998,2]
[333442927,1722127866753,-500.0,0.00010998,2]
[333442928,1722127866762,-957.96,0.00010998,2]
[333442929,1722127866772,-181.37,0.00010998,2]
[333442930,1722127866782,-957.96,0.00010998,2]
[333442931,1722127866793,-223.33,0.00010998,2]
[333442932,1722127866803,-957.96,0.00010998,2]
[333442933,1722127866815,-957.96,0.00010998,2]
[333442934,1722127866824,-500.0,0.00010998,2]
[333442935,1722127866833,-500.0,0.00010998,2]
[333442936,1722127866843,-500.0,0.00010998,2]
[333442937,1722127866853,-500.0,0.00010998,2]
[333442938,1722127866863,-500.0,0.00010998,2]
[333442939,1722127866872,-500.0,0.00010998,2]
[333442940,1722127866882,-500.0,0.00010998,2]
[333442941,1722127866891,-500.0,0.00010998,2]
[333442942,1722127866901,-500.0,0.00010998,2]
[333442943,1722127866911,-500.0,0.00010998,2]
[333442944,1722127866921,-500.0,0.00010998,2]